bitfinex/quotes_BTCUSD_20230109
["timestamp","ask_amount","ask_price","bid_price","bid_amount"]
[1673260415758,2.12952758,17279.0,17278.0,0.16628603]
[1673260416760,2.12952758,17279.0,17278.0,0.07890665]
[1673260417018,2.12952758,17279.0,17276.0,11.71477096]
[1673260417019,0.6725869,17278.0,17276.0,11.71477096]
[1673260417275,0.37332389,17277.0,17276.0,11.71477096]
[1673260417788,0.37332389,17277.0,17276.0,12.07716096]
[1673260418047,0.80706394,17277.0,17276.0,12.07716096]
[1673260418805,0.81606394,17277.0,17276.0,12.16516096]
[1673260419086,0.38232389,17277.0,17276.0,12.16516096]
[1673260422689,1.1630494,17277.0,17276.0,12.16516096]
[1673260422941,1.1630494,17277.0,17276.0,12.74399796]
[1673260423487,0.78972551,17277.0,17276.0,13.32283496]
[1673260423710,0.61623463,17277.0,17276.0,13.32283496]
[1673260424468,0.44273987,17277.0,17276.0,13.32283496]
[1673260427055,0.61622576,17277.0,17276.0,13.32283496]
[1673260427324,0.44273965,17277.0,17276.0,13.32283496]
[1673260427581,0.18249252,17277.0,17276.0,13.32283496]
[1673260427800,0.44273965,17277.0,17276.0,13.32283496]
[1673260428081,0.44273965,17277.0,17276.0,13.90167196]
[1673260428592,0.44273965,17277.0,17276.0,13.32283496]
[1673260430397,0.44267693,17277.0,17276.0,13.32283496]
[1673260431444,0.61616304,17277.0,17276.0,13.32283496]
[1673260433017,1.14662574,17277.0,17276.0,13.32283496]
[1673260433288,1.14662575,17277.0,17276.0,13.32283496]
[1673260433845,0.79964712,17277.0,17276.0,12.74399796]
[1673260438943,0.79964712,17277.0,17276.0,12.79399796]
[1673260439202,0.79964712,17277.0,17276.0,13.37283496]
[1673260439711,0.79964712,17277.0,17276.0,13.43862846]
[1673260441751,1.14675754,17277.0,17276.0,13.37283496]
[1673260442283,0.79964712,17277.0,17276.0,13.37283496]
[1673260442798,0.79964712,17277.0,17276.0,13.43863314]
[1673260445621,0.7999298,17277.0,17276.0,13.43863314]
[1673260446388,0.36590153,17277.0,17276.0,13.43863314]
[1673260446643,0.4429769,17277.0,17276.0,13.43863314]
[1673260447421,0.79509704,17277.0,17276.0,13.43863314]
[1673260447705,0.79509654,17277.0,17276.0,13.43863314]
[1673260448731,1.14232477,17277.0,17276.0,13.43863314]
[1673260449768,1.14232477,17277.0,17276.0,13.37283496]
[1673260450799,1.14232477,17277.0,17276.0,13.4378728]
[1673260451823,0.61656993,17277.0,17276.0,13.4378728]
[1673260452351,0.61656993,17277.0,17276.0,14.0167098]
[1673260453629,0.61656993,17277.0,17276.0,13.95167196]
[1673260455167,0.18252949,17277.0,17276.0,14.48237098]
[1673260455436,0.18252949,17277.0,17276.0,14.25167196]
[1673260455729,0.18252949,17277.0,17276.0,14.11857196]
[1673260456464,0.44290956,17277.0,17276.0,14.11857196]
[1673260457742,0.44290956,17277.0,17276.0,14.20202267]
[1673260461033,0.61654558,17277.0,17276.0,14.20202267]
[1673260462293,0.44290806,17277.0,17276.0,14.20202267]
[1673260463560,0.18252799,17277.0,17276.0,14.20202267]
[1673260464855,0.18252799,17277.0,17276.0,14.50202267]
[1673260466120,0.18252799,17277.0,17276.0,14.66822267]
[1673260466363,0.18252799,17277.0,17276.0,14.36822267]
[1673260466612,0.00893728,17277.0,17276.0,14.66822267]
[1673260467403,0.00893728,17277.0,17276.0,15.21276527]
[1673260467659,0.00893728,17277.0,17276.0,15.21266331]
[1673260468477,0.00893728,17277.0,17276.0,15.21250071]
[1673260468959,0.01188697,17279.0,17276.0,17.14640701]
[1673260469226,0.00201792,17279.0,17278.0,0.67447582]
[1673260469475,0.00201792,17279.0,17278.0,1.88048372]
[1673260469753,0.00201792,17279.0,17278.0,4.89826985]
[1673260469984,0.00201792,17279.0,17278.0,5.30676985]
[1673260470240,0.00201792,17279.0,17278.0,4.59556372]
[1673260470505,0.00201792,17279.0,17278.0,4.4224879]
[1673260470757,0.00201792,17279.0,17278.0,4.4309879]
[1673260471097,0.00201792,17279.0,17278.0,5.01825429]
[1673260472279,0.00201792,17279.0,17278.0,5.15825429]
[1673260473561,0.00201792,17279.0,17278.0,5.21623949]
[1673260473809,0.00201792,17279.0,17278.0,4.6289731]
[1673260474055,0.00201792,17279.0,17278.0,5.15722204]
[1673260474329,0.00201792,17279.0,17278.0,5.17373814]
[1673260474590,7.92e-06,17279.0,17278.0,4.6289731]
[1673260474895,7.92e-06,17279.0,17278.0,5.6336731]
[1673260475367,7.92e-06,17279.0,17278.0,5.80633276]
[1673260475897,7.92e-06,17279.0,17278.0,5.6336731]
[1673260479753,7.92e-06,17279.0,17278.0,5.80633808]
[1673260480285,0.01311898,17283.0,17279.0,0.40005208]
[1673260480536,0.01311898,17283.0,17282.0,0.3347]
[1673260480787,0.01311898,17283.0,17282.0,3.48659419]
[1673260481035,0.01311898,17283.0,17282.0,3.95354687]
[1673260481321,0.01311898,17283.0,17282.0,4.12974687]
[1673260481571,0.01311898,17283.0,17282.0,3.5465192]
[1673260481822,0.01311898,17283.0,17282.0,4.16907394]
[1673260482082,0.01311898,17283.0,17282.0,4.17107394]
[1673260482337,0.01311898,17283.0,17282.0,4.00386732]
[1673260482844,0.01311898,17283.0,17282.0,3.94588212]
[1673260484372,0.01311898,17283.0,17282.0,3.31048212]
[1673260485393,0.01311898,17283.0,17282.0,3.71048212]
[1673260486149,0.01311898,17283.0,17282.0,3.70198212]
[1673260487455,0.01311898,17283.0,17282.0,4.00198212]
[1673260487718,0.01311898,17283.0,17282.0,3.70198212]
[1673260493099,0.01311898,17283.0,17282.0,4.00198212]
[1673260493367,0.01311898,17283.0,17282.0,3.70198212]
[1673260493629,0.01311898,17283.0,17282.0,3.12334612]
[1673260493909,0.01311898,17283.0,17282.0,3.42334612]
[1673260494683,0.01311898,17283.0,17282.0,3.12285274]
[1673260494940,0.01311898,17283.0,17282.0,2.18182674]
[1673260495192,0.01311898,17283.0,17282.0,2.54421674]
[1673260497829,0.01311898,17283.0,17282.0,3.01101674]
[1673260498376,0.01311898,17283.0,17282.0,3.58965274]
[1673260498632,0.01311898,17283.0,17282.0,4.13070051]
[1673260498889,0.01311898,17283.0,17282.0,3.58965274]
[1673260499146,0.01311898,17283.0,17282.0,3.59815274]
[1673260499960,0.01311898,17283.0,17282.0,3.76585274]
[1673260500746,0.01311898,17283.0,17282.0,4.30664821]
[1673260501289,0.01311898,17283.0,17282.0,3.76585274]
[1673260501824,0.01303549,17283.0,17282.0,3.76585274]
[1673260502534,0.00877749,17283.0,17282.0,3.76585274]
[1673260502794,0.00877749,17283.0,17282.0,3.46585274]
[1673260503366,0.00877749,17283.0,17282.0,3.29905274]
[1673260506624,0.00877749,17283.0,17282.0,3.29954612]
[1673260507387,0.00877749,17283.0,17282.0,3.59954612]
[1673260508645,0.00877749,17283.0,17282.0,3.29954612]
[1673260510426,0.00877749,17283.0,17282.0,3.59954612]
[1673260510686,0.00877749,17283.0,17282.0,3.29954612]
[1673260512750,0.00877749,17283.0,17282.0,3.59954612]
[1673260514331,0.00877749,17283.0,17282.0,3.29954612]
[1673260514583,0.00877749,17283.0,17282.0,3.59954612]
[1673260515394,0.00877749,17283.0,17282.0,3.77260877]
[1673260516285,0.00877749,17283.0,17282.0,3.59954612]
[1673260516765,0.00877749,17283.0,17282.0,3.29954612]
[1673260520401,0.00877749,17283.0,17282.0,3.59954612]
[1673260521130,0.00877749,17283.0,17282.0,3.29954612]
[1673260523356,0.00877749,17283.0,17282.0,3.59954612]
[1673260524081,0.00877749,17283.0,17282.0,4.14973179]
[1673260524351,0.00877749,17283.0,17282.0,4.31743179]
[1673260524833,0.00877749,17283.0,17282.0,4.94515673]
[1673260525083,0.00877749,17283.0,17282.0,5.20475998]
[1673260526286,0.00877749,17283.0,17282.0,5.03169115]
[1673260528247,0.00877749,17283.0,17282.0,4.49011637]
[1673260528742,0.00877749,17283.0,17282.0,4.03546026]
[1673260529486,0.00877749,17283.0,17282.0,4.57500987]
[1673260529990,0.00877749,17283.0,17282.0,5.19755286]
[1673260530229,0.00877749,17283.0,17282.0,4.20842473]
[1673260530483,0.00877749,17283.0,17282.0,3.94882148]
[1673260531440,0.00877749,17283.0,17282.0,4.20830442]
[1673260532151,0.00877749,17283.0,17282.0,5.20020226]
[1673260532947,0.00868112,17283.0,17282.0,5.37337545]
[1673260533189,0.01365625,17284.0,17283.0,0.4]
[1673260533430,2.5e-07,17284.0,17283.0,4.90595458]
[1673260533676,0.0145929,17285.0,17283.0,5.59896918]
[1673260533914,0.0145929,17285.0,17284.0,2.59810042]
[1673260534166,0.0145929,17285.0,17284.0,4.33335974]
[1673260534400,0.0145929,17285.0,17284.0,4.33335519]
[1673260534639,0.0145929,17285.0,17284.0,4.33335474]
[1673260534874,0.000116,17286.0,17284.0,4.33335474]
[1673260535113,0.000116,17286.0,17285.0,0.69479]
[1673260535357,0.000116,17286.0,17285.0,3.6795499]
[1673260535860,0.000116,17286.0,17285.0,3.85233325]
[1673260536130,0.000116,17286.0,17285.0,4.34131586]
[1673260536360,0.000116,17286.0,17285.0,4.68701717]
[1673260536602,0.000116,17286.0,17285.0,4.51431792]
[1673260537088,0.000116,17286.0,17285.0,4.37481122]
[1673260537334,0.000116,17286.0,17285.0,3.99273009]
[1673260537586,0.000116,17286.0,17285.0,4.56612748]
[1673260537833,0.000116,17286.0,17285.0,4.53344059]
[1673260538081,0.000116,17286.0,17285.0,3.85278869]
[1673260538328,0.000116,17286.0,17285.0,3.99278869]
[1673260538568,0.000116,17286.0,17285.0,3.85278869]
[1673260538810,0.000116,17286.0,17285.0,3.99278869]
[1673260540275,0.000116,17286.0,17285.0,4.13278869]
[1673260540557,0.000116,17286.0,17285.0,3.94645116]
[1673260540807,0.000116,17286.0,17285.0,3.96115076]
[1673260541064,0.000116,17286.0,17285.0,3.96146913]
[1673260541296,0.000116,17286.0,17285.0,4.48380864]
[1673260541551,0.000116,17286.0,17285.0,4.20380864]
[1673260543855,0.000116,17286.0,17285.0,3.66173081]
[1673260544390,0.000116,17286.0,17285.0,3.80173081]
[1673260544670,0.000116,17286.0,17285.0,3.66173081]
[1673260544933,0.000116,17286.0,17285.0,3.80173081]
[1673260545202,0.000116,17286.0,17285.0,3.82112591]
[1673260545720,0.000116,17286.0,17285.0,3.9938128]
[1673260546002,0.000116,17286.0,17285.0,3.82112591]
[1673260546520,0.000116,17286.0,17285.0,3.99360646]
[1673260546778,0.00610935,17289.0,17285.0,3.99360646]
[1673260547064,0.00610935,17289.0,17288.0,0.334]
[1673260547338,0.00610935,17289.0,17288.0,2.60665519]
[1673260547600,0.00610935,17289.0,17288.0,2.440195]
[1673260547870,0.00610935,17289.0,17288.0,3.140195]
[1673260548641,0.00610935,17289.0,17288.0,2.972495]
[1673260549420,0.00610935,17289.0,17288.0,3.6007014]
[1673260549695,0.00610935,17289.0,17288.0,3.57266475]
[1673260549940,0.00610935,17289.0,17288.0,3.73811987]
[1673260550249,0.02432024,17291.0,17289.0,0.4]
[1673260550500,0.02432024,17291.0,17290.0,3.318162]
[1673260550753,0.02432024,17291.0,17290.0,3.15165516]
[1673260551298,5.01805093,17292.0,17291.0,0.4]
[1673260551299,3.53379404,17292.0,17291.0,0.4]
[1673260551555,3.53379404,17292.0,17291.0,3.45646823]
[1673260551556,2.42212704,17292.0,17291.0,3.45646823]
[1673260551818,2.42212704,17292.0,17291.0,3.56861925]
[1673260551819,1.58353504,17292.0,17291.0,3.56861925]
[1673260552074,1.58353504,17292.0,17291.0,2.44967119]
[1673260552361,1.58353504,17292.0,17291.0,2.61809939]
[1673260553460,1.58353504,17292.0,17291.0,1.9852532]
[1673260553757,1.58353504,17292.0,17291.0,2.76730833]
[1673260554035,1.82121293,17292.0,17291.0,2.13128013]
[1673260554307,1.58353504,17292.0,17291.0,2.12278013]
[1673260555651,1.58353504,17292.0,17291.0,1.76045013]
[1673260557045,1.58353504,17292.0,17291.0,0.14006]
[1673260557046,1.91723504,17292.0,17291.0,0.14006]
[1673260557567,1.91723504,17292.0,17291.0,6e-05]
[1673260558115,2.45570895,17292.0,17291.0,6e-05]
[1673260558365,2.45570895,17292.0,17291.0,0.06606]
[1673260558628,1.91723504,17292.0,17291.0,0.24096019]
[1673260558889,1.91723504,17292.0,17291.0,0.77304731]
[1673260558890,1.58353504,17292.0,17291.0,0.77304731]
[1673260559912,1.59253504,17292.0,17291.0,0.70904731]
[1673260560438,2.58980269,17292.0,17291.0,0.002]
[1673260560708,2.76246516,17292.0,17291.0,0.002]
[1673260560944,3.0214493,17292.0,17291.0,0.002]
[1673260561209,0.4,17291.0,17290.0,6e-05]
[1673260561475,0.5677,17291.0,17290.0,6e-05]
[1673260561779,0.1677,17291.0,17290.0,6e-05]
[1673260562067,0.5677,17291.0,17290.0,6e-05]
[1673260562818,0.1707,17291.0,17290.0,6e-05]
[1673260563347,0.1706334,17291.0,17290.0,6e-05]
[1673260564091,0.5706334,17291.0,17290.0,6e-05]
[1673260564596,0.57566247,17291.0,17290.0,6e-05]
[1673260565094,0.83493639,17291.0,17290.0,6e-05]
[1673260565338,0.17566247,17291.0,17290.0,0.77275642]
[1673260565584,0.003,17291.0,17290.0,0.59779623]
[1673260566328,0.003,17291.0,17290.0,1.17616423]
[1673260566582,0.003,17291.0,17290.0,1.75453223]
[1673260566866,0.003,17291.0,17290.0,2.11692223]
[1673260567114,0.003,17291.0,17290.0,1.75453223]
[1673260568961,0.003,17291.0,17290.0,2.11692223]
[1673260569505,0.003,17291.0,17290.0,1.75453223]
[1673260570355,0.003,17291.0,17290.0,1.156796]
[1673260570609,0.48928247,17291.0,17290.0,0.578368]
[1673260571127,0.48928247,17291.0,17289.0,0.40705432]
[1673260571394,0.17566247,17291.0,17290.0,0.578368]
[1673260572216,1.15054927,17291.0,17289.0,0.98542832]
[1673260572517,0.43258801,17290.0,17289.0,0.98542832]
[1673260574343,0.43258801,17290.0,17289.0,0.40705432]
[1673260574599,0.43258801,17290.0,17289.0,0.47205432]
[1673260574904,0.17303565,17290.0,17289.0,1.05045632]
[1673260576207,0.17302617,17290.0,17289.0,1.05045632]
[1673260578333,0.43257172,17290.0,17289.0,1.05045632]
[1673260578580,0.17302617,17290.0,17289.0,1.05045632]
[1673260578865,0.43257922,17290.0,17289.0,1.13888954]
[1673260579852,0.43257922,17290.0,17289.0,0.16048754]
[1673260579853,0.25955305,17290.0,17289.0,0.16048754]
[1673260580149,0.60563619,17290.0,17289.0,0.16048754]
[1673260580616,0.60563619,17290.0,17289.0,0.16042754]
[1673260581447,0.43257599,17290.0,17289.0,0.16042754]
[1673260581954,1.90090154,17290.0,17289.0,0.16042754]
[1673260582209,1.5548184,17290.0,17289.0,0.16042754]
[1673260583007,2.1331864,17290.0,17289.0,0.16042754]
[1673260583255,2.25917794,17290.0,17289.0,0.16042754]
[1673260583826,2.77820205,17290.0,17289.0,0.16042754]
[1673260584398,2.77820205,17290.0,17289.0,0.09542754]
[1673260584902,2.25917794,17290.0,17289.0,0.09542754]
[1673260585160,1.85917794,17290.0,17289.0,0.09542754]
[1673260585428,1.55460702,17290.0,17289.0,0.09542754]
[1673260585703,1.55460702,17290.0,17289.0,0.10642754]
[1673260585951,1.56760702,17290.0,17289.0,0.10642754]
[1673260587751,2.30273572,17290.0,17289.0,0.10642754]
[1673260588102,2.60273572,17290.0,17289.0,0.10642754]
[1673260588294,2.74873729,17290.0,17289.0,0.10642754]
[1673260588579,2.44873729,17290.0,17289.0,0.10642754]
[1673260589096,3.14873729,17290.0,17289.0,0.10642754]
[1673260589383,3.66734007,17290.0,17289.0,0.10642754]
[1673260589639,3.66733905,17290.0,17289.0,0.10642754]
[1673260589897,3.51057835,17290.0,17289.0,0.10642754]
[1673260590175,3.51057835,17290.0,17289.0,0.10635492]
[1673260591495,3.5575477,17290.0,17289.0,0.10635492]
[1673260592359,3.03894594,17290.0,17289.0,0.10635492]
[1673260592614,3.55781566,17290.0,17289.0,0.10635492]
[1673260592864,3.51084631,17290.0,17289.0,0.10635492]
[1673260593378,4.13229008,17290.0,17289.0,0.10635492]
[1673260593636,4.04672907,17290.0,17289.0,0.10635492]
[1673260593878,3.61342036,17290.0,17289.0,0.10635492]
[1673260594128,2.80277659,17290.0,17289.0,0.10635492]
[1673260594375,2.69117659,17290.0,17289.0,0.10635492]
[1673260594684,2.23182581,17290.0,17289.0,0.10635492]
[1673260594883,1.71280859,17290.0,17289.0,0.10635492]
[1673260596354,2.23182581,17290.0,17289.0,0.10635492]
[1673260596598,2.53182581,17290.0,17289.0,0.10635492]
[1673260596843,2.55558757,17290.0,17289.0,0.10635492]
[1673260597094,2.85558757,17290.0,17289.0,0.10635492]
[1673260597847,3.11493835,17290.0,17289.0,0.10635492]
[1673260599117,3.80611626,17290.0,17289.0,0.10635492]
[1673260599375,3.760395,17290.0,17289.0,0.10635492]
[1673260602842,4.338763,17290.0,17289.0,0.10635492]
[1673260604329,3.71500124,17290.0,17289.0,0.10635492]
[1673260604584,3.13116082,17290.0,17289.0,0.10635492]
[1673260605331,3.71511035,17290.0,17289.0,0.10635492]
[1673260605577,4.02361035,17290.0,17289.0,0.10635492]
[1673260605821,4.45106416,17290.0,17289.0,0.10635492]
[1673260606544,4.44256416,17290.0,17289.0,0.10635492]
[1673260606779,4.61855473,17290.0,17289.0,0.10635492]
[1673260607018,4.04629045,17290.0,17289.0,0.10635492]
[1673260607307,3.03488711,17290.0,17289.0,0.10635492]
[1673260608105,3.64388711,17290.0,17289.0,0.10635492]
[1673260608367,4.32406608,17290.0,17289.0,0.10635492]
[1673260608592,4.52293527,17290.0,17289.0,0.10635492]
[1673260609138,3.07420411,17290.0,17289.0,0.28131511]
[1673260609390,2.65800903,17290.0,17289.0,0.10635492]
[1673260609639,2.07376692,17290.0,17289.0,0.10635492]
[1673260609910,0.80908099,17290.0,17289.0,0.28131511]
[1673260610128,0.72249024,17290.0,17289.0,0.10635492]
[1673260610870,0.28979254,17290.0,17289.0,0.10635492]
[1673260611632,2.21689744,17290.0,17289.0,0.10635492]
[1673260611891,2.08340252,17290.0,17289.0,0.1062691]
[1673260612384,2.38340252,17290.0,17289.0,0.1062691]
[1673260612910,2.08340252,17290.0,17289.0,0.1062691]
[1673260613161,2.32108041,17290.0,17289.0,0.1062691]
[1673260613422,3.36945046,17290.0,17289.0,0.1062691]
[1673260613711,3.76945046,17290.0,17289.0,0.1062691]
[1673260614201,2.96789225,17290.0,17289.0,0.1062691]
[1673260614694,3.36789225,17290.0,17289.0,0.1062691]
[1673260615440,3.94626025,17290.0,17289.0,0.1062691]
[1673260615942,3.54626025,17290.0,17289.0,0.1062691]
[1673260617959,2.96177052,17290.0,17289.0,0.1062691]
[1673260618209,3.54659266,17290.0,17289.0,0.1062691]
[1673260621728,3.24659266,17290.0,17289.0,0.1062691]
[1673260623517,3.54659266,17290.0,17289.0,0.1062691]
[1673260626738,3.24659266,17290.0,17289.0,0.1062691]
[1673260629275,2.96177052,17290.0,17289.0,0.1062691]
[1673260630519,2.66884922,17290.0,17289.0,0.1062691]
[1673260631010,2.08340252,17290.0,17289.0,0.1062691]
[1673260632511,1.50503452,17290.0,17289.0,0.1062691]
[1673260632759,1.44693921,17290.0,17289.0,0.1062691]
[1673260633511,2.02530721,17290.0,17289.0,0.1062691]
[1673260636748,2.02030721,17290.0,17289.0,0.1062691]
[1673260637703,1.44193921,17290.0,17289.0,0.1062691]
[1673260639712,2.02030721,17290.0,17289.0,0.1062691]
[1673260641748,1.50003452,17290.0,17289.0,0.1062691]
[1673260642248,1.73771241,17290.0,17289.0,0.1062691]
[1673260642509,3.88991764,17290.0,17289.0,0.1062691]
[1673260643538,3.54196489,17290.0,17289.0,0.1062691]
[1673260646282,3.9409896,17290.0,17289.0,0.1062691]
[1673260646529,4.18803717,17290.0,17289.0,0.1062691]
[1673260646771,3.71777034,17290.0,17289.0,0.1062691]
[1673260647007,3.47072277,17290.0,17289.0,0.1062691]
[1673260647246,3.259982,17290.0,17289.0,0.1062691]
[1673260647506,4.31284744,17290.0,17289.0,0.1062691]
[1673260647750,4.55989501,17290.0,17289.0,0.1062691]
[1673260648247,4.78169501,17290.0,17289.0,0.1062691]
[1673260648989,4.53464744,17290.0,17289.0,0.1062691]
[1673260649233,4.78177514,17290.0,17289.0,0.1062691]
[1673260649973,3.68814677,17290.0,17289.0,0.1062691]
[1673260650239,3.17714677,17290.0,17289.0,0.1062691]
[1673260650521,2.59730369,17290.0,17289.0,0.1062691]
[1673260650755,2.29730369,17290.0,17289.0,0.1062691]
[1673260650994,2.88272424,17290.0,17289.0,0.1062691]
[1673260653194,3.18272424,17290.0,17289.0,0.1062691]
[1673260654705,2.59730369,17290.0,17289.0,0.1062691]
[1673260654949,2.80152691,17290.0,17289.0,0.1062691]
[1673260655222,3.45439235,17290.0,17289.0,0.1062691]
[1673260655998,3.70703692,17290.0,17289.0,0.1062691]
[1673260656507,3.05417148,17290.0,17289.0,0.1062691]
[1673260656752,2.80152691,17290.0,17289.0,0.1062691]
[1673260657250,3.45439235,17290.0,17289.0,0.1062691]
[1673260657493,3.05593377,17290.0,17289.0,0.1062691]
[1673260657747,2.80152691,17290.0,17289.0,0.1062691]
[1673260658228,3.45439235,17290.0,17289.0,0.1062691]
[1673260658483,3.70879921,17290.0,17289.0,0.1062691]
[1673260659481,3.70878407,17290.0,17289.0,0.1062691]
[1673260659975,3.70878407,17290.0,17289.0,0.09943322]
[1673260660235,3.99797407,17290.0,17289.0,0.09943322]
[1673260660476,3.74358235,17290.0,17289.0,0.09943322]
[1673260660721,3.99795466,17290.0,17289.0,0.09943322]
[1673260661948,4.10865466,17290.0,17289.0,0.09943322]
[1673260662197,4.150951,17290.0,17289.0,0.09943322]
[1673260662694,4.67762859,17290.0,17289.0,0.07630212]
[1673260662944,4.68612859,17290.0,17289.0,0.07630212]
[1673260663184,5.53969926,17290.0,17289.0,0.07630212]
[1673260663667,5.53941333,17290.0,17289.0,0.07630212]
[1673260664094,5.37637328,17290.0,17289.0,0.07630212]
[1673260664100,5.53942162,17290.0,17289.0,0.07630212]
[1673260664890,6.06360796,17290.0,17289.0,0.07630212]
[1673260665179,5.02693666,17290.0,17289.0,0.07630212]
[1673260665398,5.02693666,17290.0,17289.0,0.25126231]
[1673260665399,3.97418122,17290.0,17289.0,0.25126231]
[1673260665653,3.97418122,17290.0,17289.0,0.07630212]
[1673260665654,3.51238488,17290.0,17289.0,0.07630212]
[1673260665916,3.25801257,17290.0,17289.0,0.07630212]
[1673260667204,2.64901257,17290.0,17289.0,0.07630212]
[1673260667451,3.23392195,17290.0,17289.0,0.07630212]
[1673260667957,2.65555395,17290.0,17289.0,0.07630212]
[1673260668259,2.54475395,17290.0,17289.0,0.07630212]
[1673260668469,1.95984457,17290.0,17289.0,0.07630212]
[1673260669007,2.54472195,17290.0,17289.0,0.07630212]
[1673260669506,2.88264847,17290.0,17289.0,0.07630212]
[1673260669767,3.18264847,17290.0,17289.0,0.07630212]
[1673260670524,2.54472195,17290.0,17289.0,0.07630212]
[1673260672427,3.42308995,17290.0,17289.0,0.07630212]
[1673260672692,3.42308995,17290.0,17289.0,0.05780836]
[1673260676801,2.83821257,17290.0,17289.0,0.05780836]
[1673260682600,2.83821257,17290.0,17289.0,0.0434132]
[1673260682864,3.23821257,17290.0,17289.0,0.0434132]
[1673260683172,3.78109684,17290.0,17289.0,0.0434132]
[1673260683396,4.29348684,17290.0,17289.0,0.02454986]
[1673260683678,4.31199921,17290.0,17289.0,0.02454986]
[1673260684212,4.87490306,17290.0,17289.0,0.02454986]
[1673260684758,5.49195465,17290.0,17289.0,0.02454986]
[1673260688799,6.34567162,17290.0,17289.0,0.02454986]
[1673260689558,5.49195465,17290.0,17289.0,0.02454986]
[1673260690382,5.53795743,17290.0,17289.0,0.02454986]
[1673260691341,6.3916744,17290.0,17289.0,0.01389727]
[1673260691852,5.82071896,17290.0,17289.0,0.01389727]
[1673260692104,6.47157311,17290.0,17289.0,0.01389727]
[1673260693376,6.20031311,17290.0,17289.0,0.01389727]
[1673260694381,5.34659614,17290.0,17289.0,0.01389727]
[1673260695136,5.55791699,17290.0,17289.0,0.01389727]
[1673260696643,5.82920699,17290.0,17289.0,0.01389727]
[1673260697943,1.009,17289.0,17284.0,0.37566508]
[1673260698178,0.52025945,17285.0,17284.0,0.37566508]
[1673260698423,2.49354534,17285.0,17284.0,0.37566508]
[1673260698680,2.51394473,17285.0,17284.0,0.37566508]
[1673260699168,1.99368528,17285.0,17284.0,0.37566508]
[1673260699435,2.51391407,17285.0,17284.0,0.37566508]
[1673260699676,1.99368528,17285.0,17284.0,0.37566508]
[1673260699969,2.52088219,17285.0,17284.0,0.47866508]
[1673260700956,2.89852684,17285.0,17284.0,0.47866508]
[1673260701236,2.52088219,17285.0,17284.0,0.47866508]
[1673260701709,2.52088219,17285.0,17284.0,0.103]
[1673260701956,2.62898841,17285.0,17284.0,0.103]
[1673260702206,3.14912624,17285.0,17284.0,0.27796019]
[1673260702450,3.14912624,17285.0,17284.0,0.103]
[1673260702451,2.05045241,17285.0,17284.0,0.103]
[1673260702991,2.05945241,17285.0,17284.0,0.15]
[1673260703229,2.05945241,17285.0,17283.0,1.23192102]
[1673260703230,1.41514928,17285.0,17283.0,1.23192102]
[1673260703517,1.290072,17285.0,17284.0,0.36739]
[1673260704045,1.92810006,17285.0,17284.0,0.36739]
[1673260704295,1.79510006,17285.0,17283.0,1.23192102]
[1673260704545,0.60677697,17284.0,17283.0,1.23692102]
[1673260704782,0.60677697,17284.0,17283.0,1.45523837]
[1673260705033,0.43341833,17284.0,17283.0,2.02718531]
[1673260705295,0.17337106,17284.0,17283.0,2.71628831]
[1673260705832,0.43341772,17284.0,17283.0,3.29489131]
[1673260706383,0.43341772,17284.0,17283.0,3.30089131]
[1673260706638,0.43341772,17284.0,17283.0,3.29489131]
[1673260706911,0.44541772,17284.0,17283.0,3.35589131]
[1673260708718,0.61877636,17284.0,17283.0,3.35589131]
[1673260709252,0.61877636,17284.0,17283.0,3.24509131]
[1673260710059,0.79214461,17284.0,17283.0,3.24509131]
[1673260710619,0.79214461,17284.0,17283.0,3.29789756]
[1673260711410,1.00291107,17284.0,17283.0,3.29789756]
[1673260711697,1.00291107,17284.0,17283.0,2.71929456]
[1673260712203,0.65618137,17284.0,17283.0,2.71929456]
[1673260712460,0.7922794,17284.0,17283.0,2.71929456]
[1673260712985,1.00309856,17284.0,17283.0,2.71929456]
[1673260714742,0.65621971,17284.0,17283.0,2.71929456]
[1673260715517,0.65628315,17284.0,17283.0,2.71929456]
[1673260717285,0.65628315,17284.0,17283.0,1.56874762]
[1673260717536,0.22286824,17284.0,17283.0,0.99014462]
[1673260719060,0.36827663,17284.0,17283.0,0.99014462]
[1673260719329,0.22286824,17284.0,17283.0,0.99014462]
[1673260719585,0.74334235,17284.0,17283.0,0.99014462]
[1673260720342,1.32191135,17284.0,17283.0,0.87964462]
[1673260720899,1.32191135,17284.0,17283.0,0.51725462]
[1673260721187,1.32191135,17284.0,17283.0,0.87964462]
[1673260722469,1.32191135,17284.0,17283.0,0.879544]
[1673260722973,1.64088834,17284.0,17283.0,0.879544]
[1673260723233,1.32191135,17284.0,17283.0,0.879544]
[1673260723493,0.22286824,17284.0,17283.0,1.16610419]
[1673260723741,0.22286824,17284.0,17283.0,0.991144]
[1673260723992,0.44587753,17284.0,17283.0,0.991144]
[1673260724235,1.00421599,17284.0,17283.0,0.991144]
[1673260725764,0.65712158,17284.0,17283.0,1.020144]
[1673260726264,0.79295771,17284.0,17283.0,1.020144]
[1673260726517,1.00420176,17284.0,17283.0,1.020144]
[1673260726766,0.64512158,17284.0,17283.0,0.959144]
[1673260727018,0.65712158,17284.0,17283.0,1.020144]
[1673260727277,0.65835245,17284.0,17283.0,1.020144]
[1673260727806,0.65835245,17284.0,17283.0,1.598747]
[1673260728057,1.00542599,17284.0,17283.0,1.598747]
[1673260728351,1.0054484,17284.0,17283.0,1.598747]
[1673260729337,0.65837486,17284.0,17283.0,1.598747]
[1673260729847,0.22449733,17284.0,17283.0,1.598747]
[1673260731126,0.22449733,17284.0,17283.0,1.020144]
[1673260732650,1.38088046,17284.0,17283.0,0.908544]
[1673260733172,1.95944946,17284.0,17283.0,0.908544]
[1673260733472,1.38088046,17284.0,17283.0,0.908544]
[1673260733682,0.86024474,17284.0,17283.0,0.908544]
[1673260737038,1.38088046,17284.0,17283.0,0.908544]
[1673260739322,1.95944946,17284.0,17283.0,0.908544]
[1673260746257,1.95944946,17284.0,17283.0,0.90844128]
[1673260746504,2.53801846,17284.0,17283.0,0.90844128]
[1673260749825,2.53801846,17284.0,17283.0,0.50844128]
[1673260750095,2.53801846,17284.0,17283.0,0.28906526]
[1673260752083,1.95944946,17284.0,17283.0,0.28906526]
[1673260753587,2.53801846,17284.0,17283.0,0.28906526]
[1673260753910,2.53804258,17284.0,17283.0,0.09]
[1673260754140,2.53804258,17284.0,17283.0,0.452492]
[1673260754402,2.5380184,17284.0,17283.0,0.452492]
[1673260754656,1.9594494,17284.0,17283.0,0.452492]
[1673260755951,1.3808804,17284.0,17283.0,0.452492]
[1673260756205,0.86024474,17284.0,17283.0,0.452492]
[1673260756504,1.3808804,17284.0,17283.0,0.452492]
[1673260756955,0.86024474,17284.0,17283.0,0.452492]
[1673260757206,1.3808804,17284.0,17283.0,0.452492]
[1673260758735,0.86024474,17284.0,17283.0,0.452492]
[1673260761332,1.43881374,17284.0,17283.0,0.452492]
[1673260763360,1.43870433,17284.0,17283.0,0.452492]
[1673260764329,2.01727333,17284.0,17283.0,0.452492]